bitfinex/quotes_BTCUSD_20250723
["timestamp","ask_amount","ask_price","bid_price","bid_amount"]
[1753288845665,0.41549438,117790.0,117780.0,0.54639696]
[1753288846337,0.39851509,117790.0,117780.0,0.001]
[1753288846777,0.48299239,117790.0,117780.0,0.001]
[1753288847841,0.460831,117790.0,117780.0,0.001]
[1753288848743,0.800831,117790.0,117780.0,0.001]
[1753288850234,0.800791,117790.0,117780.0,0.001]
[1753288851832,0.800631,117790.0,117780.0,0.001]
[1753288852045,0.664311,117790.0,117780.0,0.001]
[1753288852256,0.800631,117790.0,117780.0,0.001]
[1753288852446,0.8851083,117790.0,117780.0,0.001]
[1753288855650,0.66346204,117790.0,117780.0,0.001]
[1753288855853,0.74065342,117790.0,117780.0,0.56337733]
[1753288856095,0.59596374,117790.0,117780.0,0.19627881]
[1753288856286,0.72680374,117790.0,117780.0,0.56534733]
[1753288856427,0.72680374,117790.0,117780.0,0.56534747]
[1753288856641,0.71509474,117790.0,117780.0,0.36809852]
[1753288857917,0.71509474,117790.0,117780.0,0.54639703]
[1753288859370,0.40922104,117790.0,117780.0,0.54639703]
[1753288859586,0.2190099,117790.0,117780.0,0.56534747]
[1753288859755,0.23598861,117790.0,117780.0,0.57383751]
[1753288859977,0.23598861,117790.0,117780.0,0.58232741]
[1753288860180,0.41427199,117790.0,117780.0,0.57383751]
[1753288860400,0.21900939,117790.0,117780.0,0.58232741]
[1753288860608,0.23598839,117790.0,117780.0,0.58232741]
[1753288860805,0.21900939,117790.0,117780.0,0.58232741]
[1753288861016,0.22749878,117790.0,117780.0,0.58232741]
[1753288861486,0.21900946,117790.0,117780.0,0.58232741]
[1753288861706,0.21900946,117790.0,117780.0,0.58547741]
[1753288861707,0.13788,117790.0,117780.0,0.58547741]
[1753288861912,0.15485828,117790.0,117780.0,0.58547741]
[1753288862253,0.14636903,117790.0,117780.0,0.58547741]
[1753288862466,0.13788,117790.0,117780.0,0.58547741]
[1753288862868,0.13788,117790.0,117780.0,0.70235471]
[1753288863093,0.13788,117790.0,117780.0,0.73325471]
[1753288864287,0.002,117790.0,117780.0,0.73325471]
[1753288864704,0.13792,117790.0,117780.0,0.73325471]
[1753288866551,0.1464091,117790.0,117780.0,0.66995471]
[1753288866753,0.3331813,117790.0,117780.0,0.18975884]
[1753288866957,0.4629539,117790.0,117780.0,0.17080811]
[1753288867183,0.29316013,117790.0,117780.0,0.57186708]
[1753288867363,0.41913052,117790.0,117780.0,0.57186708]
[1753288867602,0.41064142,117790.0,117780.0,0.57186736]
[1753288867814,0.41064142,117790.0,117780.0,0.58035726]
[1753288868178,0.4191311,117790.0,117780.0,0.58035726]
[1753288868498,0.4191311,117790.0,117780.0,0.1962788]
[1753288868751,0.41064192,117790.0,117780.0,0.56337732]
[1753288868964,0.40215253,117790.0,117780.0,0.55488729]
[1753288869169,0.39366299,117790.0,117780.0,0.55488729]
[1753288869386,0.38517338,117790.0,117780.0,0.17929851]
[1753288869581,0.38517338,117790.0,117780.0,0.54639703]
[1753288870058,0.3766837,117790.0,117780.0,0.36809852]
[1753288870475,0.3766837,117790.0,117780.0,0.55488729]
[1753288870687,0.38517331,117790.0,117780.0,0.5633774]
[1753288870895,0.38517331,117790.0,117780.0,0.55488729]
[1753288871106,0.38517331,117790.0,117780.0,0.54639703]
[1753288871300,0.3766837,117790.0,117780.0,0.001]
[1753288871944,0.3766837,117790.0,117780.0,0.36809852]
[1753288873256,0.3766837,117790.0,117780.0,0.54639696]
[1753288873460,0.3766837,117790.0,117780.0,0.001]
[1753288873653,0.3766837,117790.0,117780.0,0.36809852]
[1753288874398,0.3766837,117790.0,117780.0,0.001]
[1753288874955,0.3766837,117790.0,117780.0,0.18778877]
[1753288875390,0.37583474,117790.0,117780.0,0.55488729]
[1753288876271,0.37583474,117790.0,117780.0,0.54639703]
[1753288876722,0.37583474,117790.0,117780.0,0.36809852]
[1753288876922,0.37583474,117790.0,117780.0,0.54639703]
[1753288877124,0.37583474,117790.0,117780.0,0.55488736]
[1753288877330,0.37583474,117790.0,117780.0,0.37658892]
[1753288877531,0.37583474,117790.0,117780.0,0.001]
[1753288877721,0.82741056,117790.0,117780.0,0.001]
[1753288877953,0.80031204,117790.0,117780.0,0.001]
[1753288878908,0.57991474,117790.0,117780.0,0.17080811]
[1753288879105,0.42709946,117790.0,117780.0,0.57383708]
[1753288879339,0.55942946,117790.0,117780.0,0.57383708]
[1753288879547,0.40485104,117790.0,117780.0,0.57383708]
[1753288879726,0.16897104,117790.0,117780.0,0.57383708]
[1753288880127,0.17746022,117790.0,117780.0,0.57383708]
[1753288880342,0.16897104,117790.0,117780.0,0.57383708]
[1753288880847,0.13667104,117790.0,117780.0,0.20988856]
[1753288881148,0.15630227,117790.0,117780.0,0.57698708]
[1753288881556,0.18730227,117790.0,117780.0,0.57383708]
[1753288881781,0.23292811,117790.0,117780.0,0.57383708]
[1753288881942,0.23500811,117790.0,117780.0,0.57383708]
[1753288882146,0.41329207,117790.0,117780.0,0.18975869]
[1753288882348,0.41329207,117790.0,117780.0,0.2067387]
[1753288882349,0.40799289,117790.0,117780.0,0.2067387]
[1753288882544,0.40799289,117790.0,117780.0,0.57383722]
[1753288883123,0.2212199,117790.0,117780.0,0.57383722]
[1753288883543,0.21273014,117790.0,117780.0,0.57383722]
[1753288883751,0.21802932,117790.0,117780.0,0.57383722]
[1753288884002,0.2350081,117790.0,117780.0,0.57383722]
[1753288884449,0.41329141,117790.0,117780.0,0.2067387]
[1753288884660,0.24668771,117790.0,117780.0,0.57383722]
[1753288885067,0.19521864,117790.0,117780.0,0.2067387]
[1753288885190,0.21732932,117790.0,117780.0,0.57383722]
[1753288885398,0.2343081,117790.0,117780.0,0.57383722]
[1753288885606,0.22581864,117790.0,117780.0,0.57383722]
[1753288886489,0.22581857,117790.0,117780.0,0.57383722]
[1753288887069,0.23430796,117790.0,117780.0,0.57383722]
[1753288887272,0.4125912,117790.0,117780.0,0.57383722]
[1753288887889,0.2343084,117790.0,117780.0,0.57383722]
[1753288888467,0.2374984,117790.0,117780.0,0.57383722]
[1753288889173,0.24598851,117790.0,117780.0,0.58232726]
[1753288889372,0.41578221,117790.0,117780.0,0.58232726]
[1753288889596,0.39880292,117790.0,117780.0,0.56534732]
[1753288889811,0.40729253,117790.0,117780.0,0.57383736]
[1753288890028,0.40729253,117790.0,117780.0,0.58232733]
[1753288890283,0.23749883,117790.0,117780.0,0.58232683]
[1753288890500,0.40729253,117790.0,117780.0,0.56534696]
[1753288891134,0.23749883,117790.0,117780.0,0.57383686]
[1753288892019,0.22051968,117790.0,117780.0,0.57383686]
[1753288892229,0.22581871,117790.0,117780.0,0.57383686]
[1753288892438,0.22581878,117790.0,117780.0,0.57383686]
[1753288893222,0.21732932,117790.0,117780.0,0.57383686]
[1753288893439,0.22581878,117790.0,117780.0,0.57383686]
[1753288893666,0.00115104,117790.0,117780.0,1.00668538]
[1753288893885,0.00115104,117790.0,117780.0,0.63958686]
[1753288894767,0.00015104,117790.0,117780.0,0.72406416]
[1753288895195,0.00115104,117790.0,117780.0,0.72506416]
[1753288895409,0.001,117790.0,117780.0,0.72406416]
[1753288895632,0.13552,117800.0,117790.0,0.19526188]
[1753288895853,0.20835781,117800.0,117790.0,0.20027188]
[1753288896068,0.20835774,117800.0,117790.0,0.5644204]
[1753288896277,0.20835774,117800.0,117790.0,0.6518477]
[1753288896278,0.14405774,117800.0,117790.0,0.6518477]
[1753288896702,0.15254627,117800.0,117790.0,0.6518477]
[1753288896916,0.14505774,117800.0,117790.0,0.6538477]
[1753288897392,0.16203494,117800.0,117790.0,0.6538477]
[1753288897611,0.15354627,117800.0,117790.0,0.6538477]
[1753288897851,0.40793584,117800.0,117790.0,0.54944183]
[1753288898070,0.22271627,117800.0,117790.0,0.5674204]
[1753288898284,0.20905774,117800.0,117790.0,0.5674204]
[1753288898493,0.15454605,117800.0,117790.0,0.5703704]
[1753288898897,0.13756936,117800.0,117790.0,0.5703704]
[1753288899166,0.14605767,117800.0,117790.0,0.5703704]
[1753288899373,0.1545462,117800.0,117790.0,0.5703704]
[1753288899594,0.15454605,117800.0,117790.0,0.5703704]
[1753288900010,0.25083508,117800.0,117790.0,0.56742069]
[1753288900218,0.40098487,117800.0,117790.0,0.003]
[1753288900423,0.40098487,117800.0,117790.0,0.18977285]
[1753288901047,0.40098487,117800.0,117790.0,0.19826231]
[1753288901467,0.40098487,117800.0,117790.0,0.2067517]
[1753288902095,0.40098487,117800.0,117790.0,0.57385022]
[1753288902299,0.22271663,117800.0,117790.0,0.57385008]
[1753288902656,0.21952663,117800.0,117790.0,0.58439926]
[1753288902846,0.40628362,117800.0,117790.0,0.58439926]
[1753288903029,0.40628362,117800.0,117790.0,0.57591022]
[1753288903233,0.40947362,117800.0,117790.0,0.57591022]
[1753288903524,0.40098509,117800.0,117790.0,0.57591022]
[1753288903674,0.40098509,117800.0,117790.0,0.58439947]
[1753288904299,0.40098509,117800.0,117790.0,0.57591022]
[1753288904496,0.40098509,117800.0,117790.0,0.57385022]
[1753288904760,0.40098509,117800.0,117790.0,0.58233954]
[1753288905090,0.40098509,117800.0,117790.0,0.58233918]
[1753288905956,0.23120581,117800.0,117790.0,0.58233882]
[1753288906159,0.21422789,117800.0,117790.0,0.58233882]
[1753288906304,0.23120494,117800.0,117790.0,0.58439882]
[1753288906506,0.22603465,117800.0,117790.0,0.58439882]
[1753288906691,0.22603458,117800.0,117790.0,0.58439882]
[1753288906901,0.243012,117800.0,117790.0,0.58439882]
[1753288907111,0.41279186,117800.0,117790.0,0.58439882]
[1753288907322,0.41279244,117800.0,117790.0,0.57590964]
[1753288907546,0.41477244,117800.0,117790.0,0.57465603]
[1753288907813,0.24499316,117800.0,117790.0,0.58314521]
[1753288908226,0.22801531,117800.0,117790.0,0.58314521]
[1753288908434,0.39779459,117800.0,117790.0,0.58314521]
[1753288908622,0.40947355,117800.0,117790.0,0.19057923]
[1753288908860,0.40947355,117800.0,117790.0,0.55767775]
[1753288909076,0.40947355,117800.0,117790.0,0.54918829]
[1753288909328,0.40644792,117800.0,117790.0,0.00174639]
[1753288909539,0.39249642,117800.0,117790.0,0.17154009]
[1753288909760,0.39249642,117800.0,117790.0,0.1800297]
[1753288909978,0.39249642,117800.0,117790.0,0.1970087]
[1753288910189,0.39249642,117800.0,117790.0,0.55561776]
[1753288910628,0.3840076,117800.0,117790.0,0.36884491]
[1753288910837,0.4684849,117800.0,117790.0,0.00174639]
[1753288912083,0.4674849,117800.0,117790.0,0.00074639]
[1753288912304,0.17828331,117790.0,117780.0,0.57935702]
[1753288912507,0.24166331,117790.0,117780.0,0.57086698]
[1753288912724,0.24485331,117790.0,117780.0,0.55388669]
[1753288912935,0.24485331,117790.0,117780.0,0.37558892]
[1753288913169,0.2363637,117790.0,117780.0,0.55388736]
[1753288913365,0.2363637,117790.0,117780.0,0.54539703]
[1753288913599,0.2373637,117790.0,117780.0,0.55488729]
[1753288913796,0.2383637,117790.0,117780.0,0.55588729]
[1753288914014,0.2383637,117790.0,117780.0,0.56437747]
[1753288914613,0.24685331,117790.0,117780.0,0.57286758]
[1753288915477,0.07386939,117790.0,117780.0,0.58341755]
[1753288915693,0.08501159,117790.0,117780.0,0.58341705]
[1753288915901,0.07188918,117790.0,117780.0,0.58341705]
[1753288916122,0.1546985,117790.0,117780.0,0.58640705]
[1753288916387,0.15469857,117790.0,117780.0,0.58640705]
[1753288916562,0.15735159,117790.0,117780.0,0.58640705]
[1753288916850,0.14620918,117790.0,117780.0,0.58640705]
[1753288917068,0.13772,117790.0,117780.0,0.58640705]
[1753288917285,0.14620918,117790.0,117780.0,0.58640705]
[1753288917506,0.1546985,117790.0,117780.0,0.58640705]
[1753288918451,0.13772,117790.0,117780.0,0.58640705]
[1753288918678,0.13788,117790.0,117780.0,0.73338435]
[1753288920440,0.39509209,117790.0,117780.0,0.25834541]
[1753288920667,0.40702121,117790.0,117780.0,0.002]
[1753288921480,0.38983284,117790.0,117780.0,0.002]
[1753288925499,0.25072284,117790.0,117780.0,0.56644732]
[1753288925745,0.38664284,117790.0,117780.0,0.57493736]
[1753288925988,0.21684857,117790.0,117780.0,0.58342683]
[1753288926237,0.1954776,117790.0,117780.0,0.58342683]
[1753288926481,0.002,117790.0,117780.0,0.67089413]
[1753288926730,0.13804,117790.0,117780.0,0.67089413]
[1753288926980,0.18731828,117790.0,117780.0,0.66790413]
[1753288927227,0.20932903,117790.0,117780.0,0.66790413]
[1753288927469,0.17034,117790.0,117780.0,0.66790413]
[1753288927711,0.1788291,117790.0,117780.0,0.66790413]
[1753288928190,0.18731842,117790.0,117780.0,0.66790413]
[1753288928675,0.18731842,117790.0,117780.0,0.30080561]
[1753288928923,0.19580781,117790.0,117780.0,0.66790413]
[1753288929163,0.36560151,117790.0,117780.0,0.30080561]
[1753288929407,0.20429735,117790.0,117780.0,0.66790413]
[1753288930369,0.37409105,117790.0,117780.0,0.65941423]
[1753288930600,0.20429786,117790.0,117780.0,0.65941416]
[1753288931092,0.37409199,117790.0,117780.0,0.65092426]
[1753288931565,0.187319,117790.0,117780.0,0.65941416]
[1753288932032,0.36560231,117790.0,117780.0,0.65941416]
[1753288932179,0.18731864,117790.0,117780.0,0.65941416]
[1753288932409,0.17882903,117790.0,117780.0,0.65941416]
[1753288932633,0.18731828,117790.0,117780.0,0.65941416]
[1753288933073,0.19580767,117790.0,117780.0,0.65941416]
[1753288933482,0.20429721,117790.0,117780.0,0.65941416]
[1753288934043,0.18731828,117790.0,117780.0,0.66240416]
[1753288934589,0.17882903,117790.0,117780.0,0.66240416]
[1753288934794,0.14652903,117790.0,117780.0,0.66240416]
[1753288934992,0.15501813,117790.0,117780.0,0.66240416]
[1753288935430,0.18611813,117790.0,117780.0,0.66240416]
[1753288935863,0.15501813,117790.0,117780.0,0.66240416]
[1753288936219,0.002,117790.0,117780.0,0.66240416]
[1753288936452,0.13764,117790.0,117780.0,1.43240268]
[1753288936904,0.002,117790.0,117780.0,1.43240268]
[1753288937131,0.001,117790.0,117780.0,1.43140268]
[1753288937481,0.002,117790.0,117780.0,1.43240268]
[1753288937710,4.936e-05,117800.0,117790.0,0.53526188]
[1753288937935,1e-08,117800.0,117790.0,1.55781622]
[1753288938118,1e-08,117800.0,117790.0,1.57526524]
[1753288938336,1e-08,117800.0,117790.0,1.97491474]
[1753288938477,1e-08,117800.0,117790.0,2.04236376]
[1753288939416,1e-08,117800.0,117790.0,1.67526524]
[1753288940025,1e-08,117800.0,117790.0,2.04236376]
[1753288940405,0.00100001,117800.0,117790.0,2.04536376]
[1753288940608,0.00100001,117800.0,117790.0,1.67826524]
[1753288940892,1e-08,117800.0,117790.0,1.67526524]
[1753288941219,0.00100001,117800.0,117790.0,1.67526524]
[1753288942675,0.00100001,117800.0,117790.0,1.53954524]
[1753288942852,0.00100001,117800.0,117790.0,1.67542524]
[1753288944937,0.00100001,117800.0,117790.0,1.57538524]
[1753288945408,0.00100001,117800.0,117790.0,1.62538524]
[1753288945884,0.00200001,117800.0,117790.0,1.57638524]
[1753288946120,0.00200001,117800.0,117790.0,1.52743622]
[1753288946352,0.00200001,117800.0,117790.0,1.56033622]
[1753288946563,0.00200001,117800.0,117790.0,1.61033622]
[1753288946997,1e-08,117800.0,117790.0,1.60933622]
[1753288947208,0.00100001,117800.0,117790.0,1.61233622]
[1753288948060,0.00200001,117800.0,117790.0,1.61833622]
[1753288951224,0.00200001,117800.0,117790.0,1.56833622]
[1753288951460,1e-08,117800.0,117790.0,1.68578524]
[1753288955483,1e-08,117800.0,117790.0,1.98438524]
[1753288956780,1e-08,117800.0,117790.0,1.98422524]
[1753288957003,1e-08,117800.0,117790.0,1.85219622]
[1753288957219,1e-08,117800.0,117790.0,1.90219622]
[1753288957442,1e-08,117800.0,117790.0,1.91964524]
[1753288958933,1e-08,117800.0,117790.0,1.81964524]
[1753288961562,0.03250001,117800.0,117790.0,1.50060622]
[1753288962186,0.03250001,117800.0,117790.0,1.50370622]
[1753288963506,0.03250001,117800.0,117790.0,0.76950918]
[1753288963707,0.03250001,117800.0,117790.0,1.50060622]
[1753288964070,0.03250001,117800.0,117790.0,1.50370622]
[1753288964282,1e-08,117800.0,117790.0,1.50370622]
[1753288965695,0.03060001,117800.0,117790.0,1.50370622]
[1753288965911,1e-08,117800.0,117790.0,1.50370622]
[1753288967443,0.03140001,117800.0,117790.0,1.50370622]
[1753288967885,0.06357001,117800.0,117790.0,0.62873918]
[1753288968098,0.06671001,117800.0,117790.0,0.62873918]
[1753288968338,0.06671001,117800.0,117790.0,0.9958377]
[1753288968998,0.06671001,117800.0,117790.0,0.9978377]
[1753288969217,1e-08,117800.0,117790.0,1.38548524]
[1753288969435,1e-08,117800.0,117790.0,2.05260376]
[1753288969668,0.0611,117840.0,117830.0,0.53519559]
[1753288969861,4.941e-05,117840.0,117830.0,1.35586993]
[1753288970330,4.941e-05,117840.0,117830.0,1.49448993]
[1753288971633,0.00104941,117840.0,117830.0,1.49748993]
[1753288971848,0.00204941,117840.0,117830.0,1.51693895]
[1753288972482,4.941e-05,117840.0,117830.0,1.53780825]
[1753288973561,4.941e-05,117840.0,117830.0,1.54615669]
[1753288974256,4.941e-05,117840.0,117830.0,1.54815669]
[1753288975384,4.941e-05,117840.0,117830.0,1.54811669]
[1753288976436,0.00104941,117840.0,117830.0,1.55211669]
[1753288977506,0.00104941,117840.0,117830.0,1.57760769]
[1753288979472,1e-08,117840.0,117830.0,1.99210769]
[1753288979933,1e-08,117840.0,117830.0,1.85662769]
[1753288980134,1e-08,117840.0,117830.0,1.99210769]
[1753288980609,1e-08,117840.0,117830.0,1.74072769]
[1753288980819,1e-08,117840.0,117830.0,1.87620769]
[1753288981034,1e-08,117840.0,117830.0,1.92620769]
[1753288982256,1e-08,117840.0,117830.0,1.99070769]
[1753288982734,1e-08,117840.0,117830.0,2.04070769]
[1753288984475,1e-08,117840.0,117830.0,2.40780621]
[1753288984731,1e-08,117840.0,117830.0,2.04070769]
[1753288984983,0.0611,117880.0,117870.0,1.26932638]
[1753288985226,0.0611494,117880.0,117870.0,1.35583368]
[1753288985466,0.0611494,117880.0,117870.0,0.97947333]
[1753288985964,0.0631094,117880.0,117870.0,0.97947333]
[1753288986202,0.0660994,117880.0,117870.0,0.97947333]
[1753288986939,0.0670994,117880.0,117870.0,0.98047333]
[1753288989037,0.0641094,117880.0,117870.0,0.98047333]
[1753288989687,0.0621494,117880.0,117870.0,1.11591333]
[1753288990045,0.0621494,117880.0,117870.0,1.11905333]
[1753288990312,0.0621494,117880.0,117870.0,1.11591333]
[1753288990598,0.0641094,117880.0,117870.0,1.11591333]
[1753288991984,0.0670994,117880.0,117870.0,1.11591333]
[1753288992442,0.0670994,117880.0,117870.0,1.11388333]
[1753288993767,0.0670994,117880.0,117870.0,1.11591333]
[1753288994968,0.0621494,117880.0,117870.0,1.11591333]
[1753288995164,1e-08,117880.0,117870.0,1.11591333]
[1753288995418,1e-08,117880.0,117870.0,1.13650235]
[1753288995569,1e-08,117880.0,117870.0,1.19810235]
[1753288996205,0.0004,117890.0,117880.0,0.53511279]
[1753288996465,0.0004,117890.0,117880.0,1.11485678]
[1753288996676,0.00535,117890.0,117880.0,1.11282678]
[1753288996886,0.00535,117890.0,117880.0,0.97742678]
[1753288997100,0.00535,117890.0,117880.0,0.61959009]
[1753288997357,0.01383183,117890.0,117880.0,0.97742678]
[1753288997542,0.00535,117890.0,117880.0,0.97742678]
[1753288998411,0.06665,117890.0,117880.0,0.97742678]
[1753288999024,0.06665,117890.0,117880.0,0.97842678]
[1753289001936,0.06665,117890.0,117880.0,0.97942678]
[1753289002562,0.06665,117890.0,117880.0,0.63942678]
[1753289002718,0.06665,117890.0,117880.0,0.28159009]
[1753289002946,0.07513183,117890.0,117880.0,0.28159009]
[1753289003154,0.06665,117890.0,117880.0,0.28159009]
[1753289003377,0.0920965,117890.0,117880.0,0.17166406]
[1753289003579,0.29493901,117890.0,117880.0,0.001]
[1753289003907,0.07088262,117880.0,117870.0,0.1866452]
[1753289004118,0.08431575,117880.0,117870.0,0.1866452]
[1753289004554,0.27094556,117880.0,117870.0,0.18664593]
[1753289004752,0.39786294,117880.0,117870.0,0.1781623]
[1753289005005,0.39786294,117880.0,117870.0,0.19512963]
[1753289005607,0.3893801,117880.0,117870.0,0.19512963]
[1753289006049,0.3923801,117880.0,117870.0,0.19612963]
[1753289006471,0.3923801,117880.0,117870.0,0.20461319]
[1753289007630,0.3923801,117880.0,117870.0,0.19612963]
[1753289007852,0.3923801,117880.0,117870.0,0.187646]
[1753289008054,0.3923801,117880.0,117870.0,0.19612963]
[1753289008275,0.3923801,117880.0,117870.0,0.20461319]
[1753289008975,0.3923801,117880.0,117870.0,0.187646]
[1753289009196,0.22271604,117880.0,117870.0,0.20461304]
[1753289009629,0.23119865,117880.0,117870.0,0.20461304]
[1753289010458,0.40086271,117880.0,117870.0,0.20461304]
[1753289010673,0.40934584,117880.0,117870.0,0.20461304]
[1753289011056,0.23968178,117880.0,117870.0,0.20461304]
[1753289011262,0.41782904,117880.0,117870.0,0.20461304]
[1753289011462,0.40934635,117880.0,117870.0,0.19612963]
[1753289011663,0.40934635,117880.0,117870.0,0.20461319]
[1753289012089,0.40934635,117880.0,117870.0,0.21309668]
[1753289012762,0.23119909,117880.0,117870.0,0.21309624]
[1753289013456,0.40934635,117880.0,117870.0,0.20461283]
[1753289013692,0.23119909,117880.0,117870.0,0.20461283]
[1753289013908,0.20575,117880.0,117870.0,0.21309624]
[1753289014121,0.07035,117880.0,117870.0,0.21309624]
[1753289014337,0.20571,117880.0,117870.0,0.65541023]
[1753289014549,0.21419269,117880.0,117870.0,0.65541023]
[1753289015065,0.22267553,117880.0,117870.0,0.65541023]
[1753289015343,0.23964149,117880.0,117870.0,0.65541023]
[1753289015785,0.21419269,117880.0,117870.0,0.65541023]
[1753289016456,0.21419262,117880.0,117870.0,0.65541023]
[1753289016862,0.22267539,117880.0,117870.0,0.65541023]
[1753289017068,0.21419262,117880.0,117870.0,0.65541023]
[1753289017719,0.22267546,117880.0,117870.0,0.65541023]
[1753289018167,0.21419262,117880.0,117870.0,0.29757354]
[1753289018376,0.22267539,117880.0,117870.0,0.29757354]
[1753289018807,0.21419262,117880.0,117870.0,0.65541023]
[1753289019026,0.22267539,117880.0,117870.0,0.65541023]
[1753289019205,0.21419262,117880.0,117870.0,0.66416028]
[1753289019827,0.20571,117880.0,117870.0,0.66416028]
[1753289020357,0.20076,117880.0,117870.0,0.66620028]
[1753289020576,0.13836,117880.0,117870.0,0.66940028]
[1753289020793,0.20291,117880.0,117870.0,0.66620028]
[1753289021225,0.20609,117880.0,117870.0,0.66416028]
[1753289021663,0.21457262,117880.0,117870.0,0.66416028]
[1753289021873,0.20609,117880.0,117870.0,0.66416028]
[1753289024760,0.21457255,117880.0,117870.0,0.66416028]
[1753289024966,0.20609,117880.0,117870.0,0.66416028]
[1753289025908,0.20291,117880.0,117870.0,0.66620028]
[1753289026121,0.14041,117880.0,117870.0,0.66620028]
[1753289026361,0.13836,117880.0,117870.0,0.66620028]
[1753289026790,0.13836,117880.0,117870.0,0.66940028]
[1753289027003,0.003,117880.0,117870.0,0.66940028]
[1753289027211,0.003,117880.0,117870.0,1.03980028]
[1753289027212,0.13832,117880.0,117870.0,1.03980028]
[1753289027421,0.13832,117880.0,117870.0,1.00940028]
[1753289028307,0.13832,117880.0,117870.0,1.03950028]
[1753289028753,0.13828,117880.0,117870.0,1.43758702]
[1753289028970,0.003,117880.0,117870.0,1.43758702]
[1753289029185,0.003,117880.0,117870.0,1.57286702]
[1753289030865,0.003,117880.0,117870.0,1.59031604]
[1753289032379,0.0004,117890.0,117880.0,0.59831279]
[1753289032617,0.0004,117890.0,117880.0,1.55648357]
[1753289033486,0.0004,117890.0,117880.0,1.57393259]
[1753289033926,0.0024,117890.0,117880.0,1.57493259]
[1753289035530,0.0004,117890.0,117880.0,1.57393259]
[1753289035907,0.0004,117890.0,117880.0,1.44900176]
[1753289036121,0.0004,117890.0,117880.0,1.58424176]
[1753289042038,0.0004,117890.0,117880.0,1.55394176]
[1753289042693,0.0004,117890.0,117880.0,1.58614176]
[1753289049473,1e-08,117890.0,117880.0,1.58614176]
[1753289052103,1e-08,117890.0,117880.0,1.61161876]
[1753289052318,0.0004,117910.0,117900.0,0.1950797]
[1753289052547,0.06393,117920.0,117910.0,1.28568565]
[1753289052548,0.0004,117920.0,117910.0,1.28568565]
[1753289052770,0.00089397,117920.0,117910.0,1.57051295]
[1753289052985,0.0004,117930.0,117920.0,0.53504661]
[1753289053209,0.00054813,117930.0,117920.0,1.48984739]
[1753289053444,0.03305813,117930.0,117920.0,1.37972888]
[1753289053667,0.06698813,117930.0,117920.0,1.14623214]
[1753289053910,0.06698813,117930.0,117920.0,1.51281888]
[1753289054814,0.06698813,117930.0,117920.0,0.7796454]
[1753289055040,0.06698813,117930.0,117920.0,1.01111214]
[1753289055265,0.06698813,117930.0,117920.0,0.67111214]
[1753289055910,0.06698813,117930.0,117920.0,0.67211214]
[1753289056121,0.0839464,117930.0,117920.0,0.67211214]
[1753289056757,0.09242586,117930.0,117920.0,0.67211214]
[1753289057110,0.09242571,117930.0,117920.0,0.67211214]
[1753289057324,0.09507558,117930.0,117920.0,0.67211214]
[1753289057546,0.10355497,117930.0,117920.0,0.67211214]
[1753289057754,0.11203443,117930.0,117920.0,0.67211214]
[1753289058080,0.08659627,117930.0,117920.0,0.67211214]
[1753289058367,0.08859627,117930.0,117920.0,0.67211214]
[1753289058564,0.09707566,117930.0,117920.0,0.67211214]
[1753289058770,0.09707566,117930.0,117920.0,0.67111214]
[1753289059179,0.08859627,117930.0,117920.0,0.67111214]
[1753289059474,0.09707566,117930.0,117920.0,0.67111214]
[1753289060307,0.08859627,117930.0,117920.0,0.67111214]
[1753289060729,0.10655504,117930.0,117920.0,0.67111214]
[1753289060936,0.09807558,117930.0,117920.0,0.67111214]
[1753289061385,0.23315558,117930.0,117920.0,0.67111214]
[1753289061594,0.23050571,117930.0,117920.0,0.67111214]
[1753289062410,0.23050571,117930.0,117920.0,0.64611065]
[1753289062917,0.23050571,117930.0,117920.0,0.27952391]
[1753289063165,0.23898517,117930.0,117920.0,0.27952391]
[1753289063414,0.23050571,117930.0,117920.0,0.64611065]
[1753289063657,0.2220264,117930.0,117920.0,0.64611065]
[1753289064416,0.22202633,117930.0,117920.0,0.64611065]
[1753289064936,0.23050564,117930.0,117920.0,0.64611065]
[1753289065218,0.22202633,117930.0,117920.0,0.64611065]
[1753289065452,0.23050557,117930.0,117920.0,0.27952391]
[1753289065671,0.23050557,117930.0,117920.0,0.64611065]
[1753289066999,0.23050557,117930.0,117920.0,0.67192963]
[1753289067709,0.23898488,117930.0,117920.0,0.67192963]
[1753289068209,0.24746434,117930.0,117920.0,0.67192963]
[1753289068453,0.23898488,117930.0,117920.0,0.67192963]
[1753289068946,0.22202633,117930.0,117920.0,0.67192963]
[1753289069443,0.21354716,117930.0,117920.0,0.67192963]
[1753289070150,0.06998813,117930.0,117920.0,0.67192963]
[1753289070388,0.20498813,117930.0,117920.0,0.30733289]
[1753289070623,0.20498813,117930.0,117920.0,0.67391963]
[1753289071092,0.20498813,117930.0,117920.0,0.67192963]
[1753289071358,0.20498813,117930.0,117920.0,0.30534289]
[1753289071571,0.20498813,117930.0,117920.0,0.67192963]
[1753289072684,0.20498813,117930.0,117920.0,0.67391963]
[1753289072938,0.20498813,117930.0,117920.0,1.04050637]
[1753289073869,0.20498813,117930.0,117920.0,0.67391963]
[1753289074321,0.00354813,117930.0,117920.0,1.20936637]
[1753289074558,0.00354813,117930.0,117920.0,1.24156637]
[1753289075004,0.00154813,117930.0,117920.0,1.24156637]
[1753289075230,0.00054813,117930.0,117920.0,1.24156637]
[1753289075458,0.00054813,117930.0,117920.0,1.17866637]
[1753289076994,0.00054813,117930.0,117920.0,1.17966637]
[1753289080428,0.00054813,117930.0,117920.0,1.58416637]
[1753289080675,0.00054813,117930.0,117920.0,1.60963837]
[1753289082543,0.00054813,117930.0,117920.0,1.54513837]
[1753289084023,0.00054813,117930.0,117920.0,0.81196489]
[1753289084236,0.00054813,117930.0,117920.0,1.54513837]
[1753289086292,0.00054813,117930.0,117920.0,0.67700489]
[1753289086519,0.06314813,117930.0,117920.0,1.14776963]
[1753289086721,0.07162708,117930.0,117920.0,1.01292963]
[1753289086985,0.20646723,117930.0,117920.0,0.30634289]
[1753289087148,0.39301806,117930.0,117920.0,0.20490574]
[1753289087359,0.79073102,117930.0,117920.0,0.001]
[1753289087629,0.42414428,117930.0,117920.0,0.001]
[1753289087852,1.27520832,117930.0,117920.0,0.001]
[1753289088066,1.27820832,117930.0,117920.0,0.002]
[1753289088499,1.27820832,117930.0,117920.0,0.001]
[1753289088704,1.28420832,117930.0,117920.0,0.002]
[1753289089122,1.27520832,117930.0,117920.0,0.001]
[1753289089295,1.28220832,117930.0,117920.0,0.002]
[1753289089938,1.28220832,117930.0,117920.0,0.001]
[1753289090397,1.28320832,117930.0,117920.0,0.001]
[1753289090604,0.91662158,117930.0,117920.0,0.001]
[1753289090819,0.87701626,117930.0,117920.0,0.001]
[1753289091013,0.47601626,117930.0,117920.0,0.001]
[1753289091599,0.39653896,117930.0,117920.0,0.002]
[1753289098863,0.26169896,117930.0,117920.0,0.5466735]
[1753289099074,0.39649896,117930.0,117920.0,0.55515353]
[1753289099533,0.39649896,117930.0,117920.0,0.18856679]